bitfinex/quotes_SOLUSD_20240606
["timestamp","ask_amount","ask_price","bid_price","bid_amount"]
[1717674909146,7.9379,173.07,173.04,9.91]
[1717674910154,2.1379,173.07,173.04,9.91]
[1717674910758,2.1381,173.06,173.04,9.91]
[1717674911636,7.9381,173.06,173.04,9.91]
[1717674914561,5.8,173.06,173.04,9.91]
[1717674916362,7.9379,173.06,173.04,9.91]
[1717674918467,5.8,173.06,173.04,9.91]
[1717674918640,7.9381,173.05,173.04,9.91]
[1717674918842,4.276,173.06,173.0,9.91]
[1717674919039,4.276,173.06,172.99,2.1387]
[1717674919040,4.276,173.06,173.03,9.91]
[1717674919238,4.276,173.06,173.01,9.91]
[1717674919239,7.9382,173.04,173.01,9.91]
[1717674919444,5.8,173.03,173.01,9.91]
[1717674919658,2.1382,173.04,173.01,9.91]
[1717674919863,7.9382,173.04,173.03,9.91]
[1717674925866,7.9382,173.05,173.03,9.91]
[1717674926073,5.8,173.05,173.01,9.91]
[1717674926265,2.1382,173.04,173.01,9.91]
[1717674926569,2.1382,173.04,173.03,9.91]
[1717674926773,2.1382,173.04,173.01,9.91]
[1717674926774,7.9382,173.04,173.01,9.91]
[1717674926958,2.1383,173.03,173.01,9.91]
[1717674927161,7.9383,173.03,173.01,9.91]
[1717674929565,5.8,173.03,173.01,9.91]
[1717674929765,5.8,173.02,173.01,9.91]
[1717674931278,2.1382,173.04,173.01,9.91]
[1717674931455,5.8,173.02,173.01,9.91]
[1717674933183,2.1382,173.04,173.01,9.91]
[1717674938980,2.1384,173.03,172.97,12.049]
[1717674939172,5.8,173.0,172.97,12.049]
[1717674939677,5.8,172.99,172.97,12.049]
[1717674940761,2.4784,173.02,172.97,12.049]
[1717674940974,0.34,173.02,172.98,2.1389]
[1717674941168,5.8,173.01,172.98,2.1389]
[1717674941492,5.8,173.0,172.99,9.91]
[1717674941705,2.1384,173.03,172.99,9.91]
[1717674941706,5.8,173.01,172.99,9.91]
[1717674942878,5.8,173.0,172.99,9.91]
[1717674945284,5.8,173.0,172.97,12.049]
[1717674945477,5.8,172.99,172.97,12.049]
[1717674946590,5.8,172.99,172.98,2.1389]
[1717674947598,5.8,173.0,172.98,2.1389]
[1717674947896,0.17,173.02,172.98,2.1389]
[1717674948106,5.8,173.0,172.98,2.1389]
[1717674948998,5.8,173.0,172.97,12.049]
[1717674949200,2.4785,173.02,172.97,12.049]
[1717674949399,5.8,173.0,172.98,2.1389]
[1717674949906,0.34,173.02,172.98,2.1389]
[1717674950092,5.8,173.0,172.98,2.1389]
[1717674950293,0.34,173.02,172.98,2.1389]
[1717674950502,5.8,173.01,172.99,9.91]
[1717674950708,5.8,173.0,172.99,9.91]
[1717674954902,2.4785,173.02,172.99,9.91]
[1717674955112,0.34,173.02,172.99,9.91]
[1717674955316,5.8,173.01,172.99,9.91]
[1717674961815,2.4784,173.02,172.99,9.91]
[1717674962022,5.8,173.01,172.99,9.91]
[1717674965922,2.1383,173.03,172.99,12.0488]
[1717674966219,2.1381,173.05,173.01,2.1385]
[1717674966604,7.9381,173.05,173.01,12.0485]
[1717674966810,2.1383,173.03,173.01,9.91]
[1717674967019,5.8,173.02,173.01,9.91]
[1717674969626,7.9384,173.02,173.01,9.91]
[1717674969820,8.1084,173.02,172.98,9.91]
[1717674970019,5.8,173.0,172.98,9.91]
[1717674970933,5.8,173.0,172.98,12.0489]
[1717674973829,5.8,173.0,172.98,9.91]
[1717674974629,0.17,173.01,172.98,12.0489]
[1717674974838,5.8,173.0,172.98,12.0489]
[1717674976149,5.8,172.99,172.95,9.91]
[1717674976340,5.8,172.99,172.96,2.1391]
[1717674976648,5.8,172.99,172.97,2.139]
[1717674976835,5.8,172.99,172.97,12.049]
[1717674977035,5.8,173.0,172.97,12.049]
[1717674977732,2.4786,173.01,172.97,12.049]
[1717674977930,5.8,173.0,172.97,12.049]
[1717674979562,7.9387,173.0,172.97,9.91]
[1717674979732,5.97,172.99,172.97,9.91]
[1717674984476,0.17,172.99,172.97,9.91]
[1717674984672,5.97,172.99,172.97,9.91]
[1717674986197,5.97,172.99,172.96,2.1391]
[1717674986198,12.2996,172.98,172.94,3.01889562]
[1717674986482,7.9394,172.95,172.92,9.91]
[1717674986690,8.67818045,172.94,172.92,9.91]
[1717674986904,8.67818045,172.93,172.92,9.91]
[1717674988403,8.67818045,172.94,172.92,12.0497]
[1717674988907,8.67818045,172.93,172.92,12.0497]
[1717674989115,8.67818045,172.94,172.92,12.0497]
[1717674989981,8.67889175,172.94,172.92,12.0497]
[1717674990376,8.67889175,172.94,172.92,12.0496]
[1717674991015,8.67889175,172.94,172.93,2.1395]
[1717674991223,8.67889175,172.95,172.94,2.1394]
[1717674991385,8.67889175,172.97,172.94,2.1394]
[1717674991586,8.67889175,172.97,172.94,12.0494]
[1717674992009,8.67889175,172.97,172.94,9.91]
[1717674992214,7.9393,172.96,172.92,12.0497]
[1717674992522,8.67889175,172.95,172.92,12.0497]
[1717674992687,8.67889175,172.95,172.94,9.91]
[1717674993019,10.81819175,172.95,172.94,9.91]
[1717674994419,8.67889175,172.95,172.94,12.0494]
[1717674994727,4.2766,173.04,172.97,2.139]
[1717674994928,2.1385,173.02,172.99,9.91]
[1717674995232,7.9385,173.02,172.97,12.049]
[1717674995438,2.1389,172.98,172.97,9.91]
[1717674998008,7.9389,172.98,172.97,9.91]
[1717674998818,8.2789,172.98,172.97,9.91]
[1717674999218,6.14,172.98,172.94,9.91]
[1717674999523,2.1392,172.96,172.94,9.91]
[1717675005554,7.9391,172.97,172.94,9.91]
[1717675005725,2.1391,172.97,172.94,9.91]
[1717675007331,2.1392,172.96,172.94,9.91]
[1717675012253,2.479,172.98,172.94,9.91]
[1717675012455,2.309,172.97,172.94,12.0493]
[1717675012855,2.309,172.97,172.94,9.91]
[1717675014358,2.1386,173.01,172.98,9.91]
[1717675014561,95.64584481,173.04,172.98,2.1389]
[1717675014562,2.1385,173.02,172.98,2.1389]
[1717675014854,2.1384,173.03,173.0,9.91]
[1717675015663,2.1384,173.02,173.0,9.91]
[1717675017345,2.1384,173.03,173.0,9.91]
[1717675017663,2.1382,173.04,173.0,15.9856]
[1717675017849,2.1382,173.04,173.02,9.91]
[1717675018559,2.1383,173.03,173.02,9.91]
[1717675019162,5.8,173.05,173.02,9.91]
[1717675019163,2.1381,173.05,173.02,9.91]
[1717675019850,2.1382,173.04,173.02,9.91]
[1717675023640,2.1381,173.05,173.02,9.91]
[1717675024146,2.1382,173.04,173.0,21.7856]
[1717675025062,2.1382,173.04,173.02,9.91]
[1717675025651,2.1383,173.03,173.02,9.91]
[1717675025862,7.9383,173.03,173.02,9.91]
[1717675026164,7.9383,173.03,173.0,9.91]
[1717675027560,2.1383,173.04,173.0,12.0487]
[1717675027762,2.1383,173.04,173.02,9.91]
[1717675028157,2.1383,173.03,173.02,9.91]
[1717675028361,7.9383,173.04,173.02,9.91]
[1717675029547,2.1383,173.03,173.02,9.91]
[1717675029854,4.276,173.06,173.02,9.91]
[1717675030070,2.3082,173.05,173.02,9.91]
[1717675030372,2.1382,173.04,173.02,9.91]
[1717675030852,8.1081,173.05,173.02,9.91]
[1717675031258,2.1382,173.04,173.02,9.91]
[1717675031776,2.1378,173.08,173.04,9.91]
[1717675031976,12.9348404,173.12,173.06,9.91]
[1717675032145,2.1376,173.09,173.04,18.1882]
[1717675032463,2.1376,173.09,173.05,9.91]
[1717675033046,2.1376,173.09,173.07,9.91]
[1717675035670,2.1377,173.08,173.07,9.91]
[1717675036066,7.9376,173.09,173.07,9.91]
[1717675038369,2.1376,173.09,173.07,9.91]
[1717675042754,2.1374,173.11,173.08,6.4769]
[1717675042956,2.1375,173.1,173.08,6.4769]
[1717675043156,5.8,173.11,173.07,9.91]
[1717675043363,2.1374,173.1,173.07,9.91]
[1717675045079,7.9374,173.11,173.09,9.91]
[1717675045575,2.1374,173.1,173.09,9.91]
[1717675045950,5.8,173.11,173.09,9.91]
[1717675046145,7.9374,173.11,173.09,9.91]
[1717675046865,2.1374,173.11,173.09,9.91]
[1717675047069,7.9374,173.11,173.09,9.91]
[1717675048579,2.1374,173.1,173.09,9.91]
[1717675049074,7.9374,173.1,173.09,9.91]
[1717675049772,2.1374,173.1,173.09,9.91]
[1717675049980,7.9374,173.11,173.09,9.91]
[1717675053189,2.1374,173.1,173.09,9.91]
[1717675053693,4.3859404,173.12,173.09,9.91]
[1717675053694,0.1114404,173.12,173.09,9.91]
[1717675053870,7.9374,173.11,173.09,9.91]
[1717675054288,5.8,173.11,173.09,9.91]
[1717675054478,5.8,173.11,173.07,12.0478]
[1717675054679,5.8,173.11,173.07,9.91]
[1717675054680,7.9373,173.11,173.07,9.91]
[1717675055887,7.9373,173.11,173.09,9.91]
[1717675057895,5.8,173.11,173.09,9.91]
[1717675058094,7.9373,173.11,173.09,9.91]
[1717675058997,5.8,173.11,173.09,9.91]
[1717675061097,0.1114404,173.12,173.11,9.91]
[1717675061414,0.1114404,173.12,173.11,38.4635]
[1717675061611,0.1114404,173.12,173.11,104.225]
[1717675063909,4.04e-05,173.12,173.11,218.425]
[1717675064084,4.04e-05,173.12,173.11,244.225]
[1717675064279,4.04e-05,173.12,173.11,259.6778285]
[1717675065301,4.59421345,173.22,173.21,9.91]
[1717675065506,28.4335753,173.24,173.21,9.91]
[1717675065688,28.13736256,173.25,173.21,9.91]
[1717675065889,28.13736256,173.25,173.23,9.91]
[1717675066404,38.64478416,173.25,173.23,9.91]
[1717675066781,40.78038416,173.25,173.23,9.91]
[1717675067107,2.136,173.22,173.17,9.91]
[1717675067298,5.8,173.22,173.17,12.0466]
[1717675067498,7.9359,173.23,173.17,17.8466]
[1717675067797,2.1359,173.23,173.18,5.8]
[1717675068685,2.1359,173.23,173.17,17.8466]
[1717675069010,7.9359,173.23,173.17,17.8466]
[1717675069617,36.3693753,173.24,173.18,2.1364]
[1717675069787,7.9358,173.23,173.18,2.1364]
[1717675069987,5.8,173.22,173.18,2.1364]
[1717675070928,2.1358,173.23,173.18,2.1364]
[1717675070929,7.9358,173.23,173.18,2.1364]
[1717675071398,7.9358,173.23,173.17,17.8465]
[1717675072012,5.8,173.18,173.12,15.71]
[1717675072511,7.9365,173.18,173.15,9.91]
[1717675073417,2.1363,173.2,173.15,17.8468]
[1717675073594,7.9361,173.21,173.16,2.1367]
[1717675073921,7.9363,173.2,173.15,12.0468]
[1717675074101,7.9363,173.2,173.15,9.91]
[1717675074295,2.1363,173.19,173.15,9.91]
[1717675074497,2.1362,173.2,173.15,12.0468]
[1717675074698,8.1061,173.21,173.15,12.0468]
[1717675074894,5.97,173.21,173.17,2.1365]
[1717675075099,2.1359,173.23,173.17,2.1365]
[1717675075322,2.306,173.22,173.17,2.1365]
[1717675075822,2.136,173.22,173.17,2.1365]
[1717675076618,7.936,173.22,173.17,12.0465]
[1717675077308,2.136,173.22,173.17,12.0465]
[1717675077511,7.936,173.22,173.17,12.0465]
[1717675077690,7.9363,173.2,173.17,9.91]
[1717675078909,5.8,173.2,173.17,9.91]
[1717675079136,7.9362,173.2,173.17,9.91]
[1717675079300,7.9364,173.19,173.17,9.91]
[1717675080504,2.1364,173.19,173.17,9.91]
[1717675080704,7.9364,173.19,173.17,9.91]
[1717675081634,7.9365,173.18,173.13,2.137]
[1717675081924,5.8,173.15,173.12,12.0472]
[1717675082141,5.8,173.15,173.12,9.91]
[1717675083199,5.8,173.15,173.12,12.0472]
[1717675084444,5.8,173.15,173.1,18.353]
[1717675084612,5.8,173.13,173.1,12.0473]
[1717675084923,5.8,173.13,173.1,9.91]
[1717675085545,5.8,173.13,173.1,12.0474]
[1717675086222,5.8,173.14,173.1,12.0474]
[1717675087652,2.1369,173.15,173.1,12.0474]
[1717675087855,5.8,173.14,173.1,12.0474]
[1717675088020,7.937,173.14,173.1,12.0474]
[1717675089040,5.8,173.14,173.1,12.0474]
[1717675090241,5.8,173.14,173.11,2.1373]
[1717675090646,7.9369,173.15,173.1,12.0474]
[1717675091060,2.1369,173.15,173.11,2.1373]
[1717675091358,7.9368,173.16,173.11,2.1373]
[1717675092247,2.1368,173.15,173.11,2.1373]
[1717675092629,7.9368,173.15,173.11,2.1373]
[1717675094345,7.9368,173.15,173.1,12.0474]
[1717675094563,2.1369,173.14,173.1,12.0474]
[1717675094857,7.9369,173.15,173.1,12.0474]
[1717675095159,2.137,173.14,173.1,12.0474]
[1717675095365,16.2236,173.23,173.13,4.274]
[1717675095530,16.2236,173.23,173.13,5.8]
[1717675095531,4.272,173.22,173.13,5.8]
[1717675095726,7.9363,173.2,173.15,2.1367]
[1717675095968,45.84611024,173.24,173.15,5.8]
[1717675096137,2.1362,173.2,173.15,2.1368]
[1717675096553,7.9362,173.2,173.15,2.1368]
[1717675096749,2.1362,173.2,173.15,2.1368]
[1717675097055,5.8,173.2,173.16,2.1367]
[1717675097235,7.9361,173.21,173.16,2.1367]
[1717675098861,7.9362,173.2,173.15,2.1368]
[1717675099660,2.1362,173.2,173.15,7.9368]
[1717675099858,2.1362,173.2,173.15,14.1675]
[1717675100065,2.1362,173.2,173.16,2.30952943]
[1717675100534,2.1362,173.2,173.15,14.1675]
[1717675101051,7.9361,173.21,173.16,2.1366]
[1717675102852,5.8,173.2,173.16,2.1366]
[1717675103959,7.9362,173.2,173.16,2.1366]
[1717675104267,7.9362,173.2,173.15,8.3675]
[1717675104851,7.9362,173.2,173.16,2.1367]
[1717675105042,7.9362,173.2,173.14,9.91]
[1717675105043,7.9362,173.2,173.15,2.1368]
[1717675105458,5.8,173.19,173.15,2.1368]
[1717675106775,2.1365,173.18,173.12,9.91]
[1717675106951,7.9365,173.18,173.12,9.91]
[1717675107158,7.9366,173.17,173.11,6.2177]
[1717675107461,5.8,173.16,173.11,6.2177]
[1717675107649,5.8,173.16,173.12,2.1371]
[1717675108257,5.8,173.16,173.13,2.1371]
[1717675108964,2.1366,173.17,173.13,2.1371]
[1717675109165,5.8,173.16,173.13,2.1371]
[1717675109352,2.1366,173.17,173.13,2.1371]
[1717675109551,5.8,173.16,173.13,2.1371]
[1717675109776,5.8,173.16,173.12,2.1372]
[1717675109971,7.9367,173.16,173.12,12.0472]
[1717675110185,2.1369,173.15,173.1,9.91]
[1717675110558,2.1369,173.15,173.1,12.0474]
[1717675110872,7.9369,173.15,173.11,2.1373]
[1717675112290,5.8,173.15,173.12,2.1372]
[1717675112476,7.9368,173.16,173.12,2.1372]
[1717675112651,2.1368,173.16,173.12,2.1372]
[1717675112849,2.1368,173.15,173.11,2.1373]
[1717675113048,7.9368,173.15,173.11,2.1373]
[1717675113965,2.1368,173.15,173.11,2.1373]
[1717675114164,7.9368,173.15,173.11,2.1373]
[1717675114748,7.9368,173.15,173.1,12.0474]
[1717675115163,2.1368,173.15,173.11,2.1373]
[1717675118876,5.8,173.16,173.1,12.0474]
[1717675118877,2.137,173.14,173.1,12.0474]
[1717675119575,2.1368,173.15,173.1,9.91]
[1717675120181,2.1368,173.15,173.11,2.1373]
[1717675125671,7.9368,173.16,173.11,2.1373]
[1717675126080,2.1368,173.15,173.11,2.1373]
[1717675132390,2.1368,173.15,173.11,8.5539]
[1717675132574,14.9523,173.22,173.14,5.8]
[1717675132773,2.1361,173.21,173.17,2.1366]
[1717675132981,2.1361,173.21,173.18,0.50387092]
[1717675133184,2.1362,173.2,173.16,17.8466]
[1717675133787,2.1362,173.2,173.16,15.71]
[1717675133980,2.1362,173.2,173.16,17.8467]
[1717675134185,2.1362,173.2,173.16,15.71]
[1717675134396,2.1362,173.2,173.16,9.91]
[1717675134894,2.1363,173.19,173.16,9.91]
[1717675135606,2.1363,173.2,173.16,9.91]
[1717675136902,7.9363,173.2,173.16,9.91]
[1717675137599,2.1364,173.19,173.16,9.91]
[1717675137975,2.1365,173.18,173.16,9.91]
[1717675138311,2.1368,173.16,173.12,2.1372]
[1717675138512,7.9368,173.16,173.12,2.1372]
[1717675138886,2.1369,173.15,173.1,12.0473]
[1717675139201,2.1369,173.15,173.11,2.1373]
[1717675139407,7.9368,173.16,173.11,2.1373]
[1717675139911,7.9368,173.16,173.12,2.1372]
[1717675140080,2.1368,173.16,173.12,2.1372]
[1717675140280,2.1366,173.17,173.13,2.1371]
[1717675140517,2.1365,173.18,173.13,7.9371]
[1717675140686,2.1366,173.17,173.13,7.9371]
[1717675143315,2.1366,173.17,173.13,2.1371]
[1717675143486,2.1366,173.17,173.13,5.8]
[1717675144809,2.1366,173.17,173.12,57.0471]
[1717675145190,2.1366,173.17,173.12,62.8471]
[1717675146493,2.1367,173.16,173.12,62.8471]
[1717675146887,2.1366,173.17,173.12,62.8471]
[1717675148309,2.1366,173.17,173.12,69.3522]
[1717675148606,2.1367,173.16,173.12,69.3522]
[1717675155097,2.1367,173.16,173.12,63.5522]
[1717675156321,2.1369,173.15,173.12,9.91]
[1717675157293,2.1368,173.16,173.12,9.91]
[1717675157496,2.1368,173.16,173.12,12.0472]
[1717675159123,2.1367,173.16,173.12,12.0472]
[1717675163327,4.2725,173.21,173.14,6.5673]
[1717675163511,2.1363,173.2,173.16,2.1367]
[1717675164417,2.1363,173.2,173.15,2.1368]
[1717675164735,7.9363,173.2,173.15,2.1368]
[1717675165535,7.9363,173.2,173.15,47.1368]
[1717675166232,7.9363,173.2,173.16,2.1367]
[1717675166438,7.9363,173.2,173.15,45.0]
[1717675166735,2.1363,173.2,173.15,45.0]
[1717675167028,7.9363,173.2,173.15,45.0]
[1717675167429,7.9363,173.2,173.16,2.1367]
[1717675169035,7.9363,173.2,173.15,47.1368]
[1717675169741,7.9363,173.19,173.15,2.1368]
[1717675170241,7.9363,173.19,173.14,12.0469]
[1717675171111,5.8,173.18,173.14,12.0469]
[1717675171725,5.8,173.18,173.14,2.1369]
[1717675175822,5.8,173.18,173.15,2.1368]
[1717675176941,7.9363,173.19,173.15,2.1368]
[1717675178240,2.1363,173.19,173.15,2.1368]
[1717675178427,7.9363,173.19,173.15,2.1368]
[1717675179742,5.8,173.19,173.15,2.1368]
[1717675181737,7.9363,173.19,173.15,2.1368]
[1717675184243,5.8,173.19,173.15,2.1368]
[1717675184541,7.9364,173.19,173.15,2.1368]
[1717675186841,5.8,173.19,173.16,2.1367]
[1717675187231,7.9363,173.2,173.16,2.1367]
[1717675187742,2.1363,173.19,173.15,2.1368]
[1717675187924,5.8,173.2,173.15,2.1368]
[1717675188124,7.9363,173.2,173.15,2.1368]
[1717675188752,2.1363,173.2,173.15,2.1368]
[1717675188941,7.9363,173.2,173.15,2.1368]
[1717675190831,2.1363,173.2,173.16,2.1367]
[1717675191036,2.1362,173.21,173.16,2.1367]
[1717675191246,7.9362,173.21,173.16,2.1367]
[1717675191862,2.1362,173.2,173.15,7.9368]
[1717675192762,2.1362,173.2,173.15,2.1368]
[1717675193064,2.1362,173.2,173.15,7.9368]
[1717675195871,2.1362,173.2,173.15,2.1368]
[1717675196242,2.1363,173.19,173.15,2.1368]
[1717675198755,2.1363,173.2,173.15,6.2612]
[1717675199071,2.1363,173.2,173.16,2.1367]
[1717675199881,2.1363,173.2,173.15,8.398]
[1717675200045,2.1363,173.19,173.15,8.398]
[1717675201072,4.272,173.22,173.16,7.9367]
[1717675201274,2.1361,173.22,173.16,5.8]
[1717675201477,2.136,173.22,173.17,2.1365]
[1717675201653,2.1359,173.23,173.18,3.35083514]
[1717675201847,7.936,173.22,173.18,3.35083514]
[1717675202050,5.8,173.22,173.19,2.1363]
[1717675202371,5.8,173.22,173.17,4.2731]
[1717675202372,35.16701024,173.24,173.18,50.8]
[1717675202571,5.8,173.23,173.19,2.1363]
[1717675202760,2.136,173.22,173.18,47.1364]
[1717675203275,7.9359,173.23,173.18,47.1364]
[1717675203783,7.9359,173.23,173.19,2.1363]
[1717675204180,7.936,173.22,173.18,2.1364]
[1717675204502,5.8,173.19,173.14,9.91]
[1717675204789,5.8,173.18,173.14,12.0469]
[1717675205003,5.8,173.18,173.15,2.1368]
[1717675205587,5.8,173.18,173.14,12.0469]
[1717675205785,5.8,173.18,173.15,2.1368]
[1717675206083,5.8,173.18,173.14,9.91]
[1717675206084,5.8,173.18,173.14,12.0469]
[1717675206262,5.8,173.18,173.14,12.0468]
[1717675206570,5.8,173.18,173.15,2.1368]
[1717675206763,5.8,173.17,173.15,2.1368]
[1717675206963,2.1364,173.19,173.15,2.1368]
[1717675207174,5.8,173.17,173.15,2.1368]
[1717675207386,2.1361,173.21,173.14,14.1839]
[1717675207567,5.8,173.21,173.15,50.8]
[1717675207766,5.8,173.21,173.18,2.1364]
[1717675207972,5.8,173.21,173.17,45.0]
[1717675208174,5.8,173.22,173.18,2.1364]
[1717675208379,2.1359,173.23,173.18,2.1364]
[1717675208569,5.8,173.22,173.18,2.1364]
[1717675208770,35.16691024,173.24,173.19,2.1363]
[1717675208971,33.03121024,173.24,173.17,65.7562]
[1717675209275,5.8,173.23,173.2,2.1361]
[1717675209784,33.03121024,173.24,173.2,2.1361]
[1717675209986,5.8,173.23,173.19,47.1363]
[1717675210392,33.03121024,173.24,173.19,47.1363]
[1717675210690,5.8,173.23,173.19,2.1363]
[1717675210899,5.8,173.22,173.18,12.0464]
[1717675211068,5.8,173.21,173.18,12.0464]
[1717675211691,2.1359,173.23,173.19,2.1363]
[1717675211988,5.8,173.22,173.19,2.1363]
[1717675212209,5.8,173.21,173.19,2.1363]
[1717675212364,5.8,173.21,173.19,8.8023]
[1717675212707,5.8,173.22,173.21,6.666]
[1717675213003,33.03121024,173.24,173.23,2.1358]
[1717675213771,33.03121024,173.24,173.21,55.9382]
[1717675213772,33.03121024,173.24,173.22,2.1359]
[1717675213984,33.03121024,173.24,173.22,12.0459]
[1717675214291,33.03121024,173.24,173.23,2.1358]
[1717675215567,33.03121024,173.24,173.22,12.0459]
[1717675215791,33.03121024,173.24,173.22,2.1359]
[1717675216374,33.03121024,173.24,173.22,12.0459]
[1717675217411,33.03121024,173.24,173.23,2.1358]
[1717675217615,33.03121024,173.24,173.23,13.0348]
[1717675217777,33.03121024,173.24,173.23,88.2919]
[1717675217975,33.03121024,173.24,173.23,94.0919]
[1717675218178,33.03121024,173.24,173.23,47.1358]
[1717675218375,33.03121024,173.24,173.19,126.6273]
[1717675218376,33.03121024,173.24,173.19,27.3815]
[1717675218582,33.03121024,173.24,173.21,2.136]
[1717675218797,38.83121024,173.24,173.22,2.1359]
[1717675219086,38.83121024,173.24,173.2,55.681]
[1717675219287,38.83121024,173.24,173.22,2.1359]
[1717675219604,38.83121024,173.24,173.21,2.1361]
[1717675220206,5.8,173.23,173.21,2.1361]
[1717675221983,5.8,173.22,173.21,2.1361]
[1717675222198,33.03121024,173.24,173.23,2.1358]
[1717675222501,33.03121024,173.24,173.23,6.4075]
[1717675224004,33.03121024,173.24,173.23,67.7251]
[1717675224385,33.03121024,173.24,173.23,76.2686]
[1717675225706,33.03121024,173.24,173.23,69.861]
[1717675227607,33.03121024,173.24,173.23,76.2686]
[1717675227812,33.03121024,173.24,173.23,82.6626]
[1717675228101,33.03121024,173.24,173.23,98.915]
[1717675228690,33.03121024,173.24,173.23,82.6626]
[1717675228893,33.03121024,173.24,173.23,76.2686]
[1717675229292,33.03121024,173.24,173.23,69.861]
[1717675230095,33.03121024,173.24,173.23,61.3175]
[1717675230296,33.03121024,173.24,173.23,67.7251]
[1717675230601,33.03121024,173.24,173.23,102.7514]
[1717675231009,33.03121024,173.24,173.23,69.861]
[1717675231194,33.03121024,173.24,173.23,61.3175]
[1717675231394,33.03121024,173.24,173.23,2.1358]
[1717675231623,38.83121024,173.24,173.23,2.1358]
[1717675232124,33.03121024,173.24,173.22,2.1359]
[1717675232602,5.8,173.23,173.22,2.1359]
[1717675233119,5.8,173.23,173.22,12.0459]
[1717675233428,33.03121024,173.24,173.23,2.1358]
[1717675233617,38.83121024,173.24,173.23,2.1358]
[1717675234826,38.83121024,173.24,173.22,12.0459]
[1717675236632,33.03121024,173.24,173.22,12.0459]
[1717675236807,5.8,173.23,173.22,12.0459]
[1717675237002,33.03121024,173.24,173.23,2.1358]
[1717675237207,38.83121024,173.24,173.23,2.1358]
[1717675238205,38.83121024,173.24,173.22,12.0459]
[1717675238396,38.83121024,173.24,173.23,2.1358]
[1717675240110,38.83121024,173.24,173.22,12.0459]
[1717675240623,33.03121024,173.24,173.22,12.0459]
[1717675240803,33.03121024,173.24,173.22,9.91]
[1717675240804,5.8,173.23,173.22,9.91]
[1717675240999,5.8,173.23,173.22,12.046]
[1717675241202,5.8,173.23,173.2,9.91]
[1717675241523,5.8,173.21,173.2,12.0462]
[1717675242720,5.8,173.21,173.19,2.1363]
[1717675242928,5.8,173.2,173.19,2.1363]
[1717675243230,5.8,173.2,173.18,12.0464]
[1717675243533,5.8,173.19,173.18,9.91]
[1717675243825,2.1361,173.21,173.18,9.91]
[1717675244031,5.8,173.19,173.18,9.91]
[1717675245704,2.1365,173.18,173.14,2.1369]
[1717675245926,6.14,173.19,173.14,2.1369]
[1717675245927,5.8,173.15,173.14,2.1369]
[1717675246110,5.8,173.15,173.13,12.047]
[1717675246635,4.4431,173.18,173.12,2.1371]
[1717675246816,5.8,173.13,173.11,2.1373]
[1717675247015,2.1368,173.15,173.11,2.1373]
[1717675247335,5.8,173.12,173.11,2.1373]
[1717675248421,2.137,173.14,173.1,9.91]
[1717675248640,5.8,173.11,173.1,9.91]
[1717675248817,0.17,173.18,173.1,9.91]